Cogmind - Beta 13 X1 @@@ ROGUE MODE // 2023.07.23 @ 23:34:31 Player: cptwinky Result: Destroyed by G-50 Soldier with Heavy Laser Performance ------------- Evolutions (4) 2000 Regions Visited (13) 2600 Robots Destroyed (226) 1130 Value Destroyed (6704) 6704 Prototype IDs (46) 920 Alien Tech Used (0) 0 Bonus (1112) 1112 TOTAL SCORE: 14466 Bonus ------- High Alert Combat Kills 722 Follower Combat Kills 655 Aligned with FarCom 300 Friendly Fire -565 Cogmind --------- Core Integrity 0/850 Matter 300/300 Energy 100/100 System Corruption 21% Temperature Cool (9) Movement Core (50) Location -6/Factory Parts ------- > --- POWER (2) -------- (None) > --- PROPULSION (4) --- (None) > --- UTILITY (7) ------ Core Analyzer > --- WEAPON (2) ------- (None) > --- INVENTORY (5) ---- Makeshift ECM Suite Cloak of Protection Peak State ------------ > --- POWER ------------ Cooled Ion Engine > --- PROPULSION ------- Combat Airjet Combat Airjet Combat Airjet Combat Airjet > --- UTILITY ---------- Medium Storage Unit Improved Propulsion Shielding Improved Medium Armor Plating Hacking Suite Hacking Suite System Restoration Module > --- WEAPON ----------- Heavy Ion Cannon Gauss Rifle > --- INVENTORY -------- Cooled Ion Engine Improved Airjet Cooling System Experimental Sensor Array Makeshift ECM Suite Cloak of Protection Component Analysis Suite Arc Projector Arc Projector Mini Grenade Launcher [Rating: 53] Favorites ----------- Power Cooled Ion Engine Engine Cooled Ion Engine Propulsion Light Treads Treads Light Treads Leg Light Armored Exoskeleton Wheel Compact Wheel Hover Unit Combat Airjet Utility Hacking Suite Device Improved Heat Sink Storage Huge Storage Unit Processor Advanced Targeting Computer Hackware Hacking Suite Protection Hardened Light Armor Plating Weapon Beam Cannon Energy Gun Arc Projector Energy Cannon Beam Cannon Ballistic Gun Gauss Rifle Ballistic Cannon Assault Cannon Launcher Mini Grenade Launcher Slashing Weapon Makeshift Sword Special Melee Weapon Improved Datajack Build | -11 -10 -10 -9 -9 -9 -8 -8 -7 -7 -7 -7 -7 -6 ------- Run | Jun Mat Min Mat Min Exi Min Mat Fac Was Fac Low Low Fac Slots Evolved 8 | . . . 2 . . . 2 2 . . . . 2 Power 1 | . . . . . . . . . . . . . 1 Propulsion 2 | . . . 1 . . . . 1 . . . . . Utility 5 | . . . 1 . . . 2 1 . . . . 1 Weapon . | . . . . . . . . . . . . . . Parts Attached 231 | 3 4 5 43 12 3 6 43 53 2 31 6 . 20 Power 7 | . . . 3 . 1 . 1 1 . 1 . . . Engine 7 | . . . 3 . 1 . 1 1 . 1 . . . Core . | . . . . . . . . . . . . . . Reactor . | . . . . . . . . . . . . . . Propulsion 32 | 2 . 2 10 1 . 1 8 4 . 4 . . . Treads 20 | 2 . 1 8 1 . . 8 . . . . . . Leg 3 | . . . . . . . . . . 3 . . . Wheel 4 | . . 1 2 . . 1 . . . . . . . Hover 5 | . . . . . . . . 4 . 1 . . . Flight . | . . . . . . . . . . . . . . Utility 74 | . 2 1 10 1 . 1 18 21 1 10 2 . 7 Device 36 | . 1 . 4 1 . . 6 10 1 7 1 . 5 Storage 3 | . . 1 . . . . . 1 . 1 . . . Processor 4 | . . . . . . . 2 . . . . . 2 Hackware 4 | . . . . . . . 3 1 . . . . . Protection 27 | . 1 . 6 . . 1 7 9 . 2 1 . . Artifact . | . . . . . . . . . . . . . . Weapon 118 | 1 2 2 20 10 2 4 16 27 1 16 4 . 13 Energy Gun 15 | . . . . . . . . 6 1 2 . . 6 Energy Cannon 48 | . 2 . 10 5 1 2 7 7 . 8 2 . 4 Ballistic Gun 12 | 1 . 1 1 1 . . . 3 . 3 . . 2 Ballistic Cannon 3 | . . . . . . 1 2 . . . . . . Launcher 25 | . . 1 5 3 . 1 3 7 . 3 2 . . Special Weapon . | . . . . . . . . . . . . . . Impact Weapon . | . . . . . . . . . . . . . . Slashing Weapon 6 | . . . . 1 . . 3 2 . . . . . Piercing Weapon . | . . . . . . . . . . . . . . Special Melee Weapon 9 | . . . 4 . 1 . 1 2 . . . . 1 Unidentified Prototypes 2 | . . . 1 . . . . . . 1 . . . Corrupted Parts 1 | . . . . . . . 1 . . . . . . System Corruption 5 | . . . . . . . 5 . . . . . . Parts Lost 31 | . . 1 3 2 . 1 . 2 1 3 2 . 16 Power 1 | . . . . . . . . . . . . . 1 Propulsion 5 | . . . 2 . . 1 . . . . . . 2 Utility 16 | . . 1 1 . . . . 1 1 2 1 . 9 Weapon 9 | . . . . 2 . . . 1 . 1 1 . 4 Highest Loss Streak 6 | . . 1 2 1 . 1 . 1 1 2 2 . 6 To Critical Strikes . | . . . . . . . . . . . . . . Average Slot Usage (%) 96 | . 95 99 99 100 100 100 98 99 99 87 82 84 69 Engine 9 | . 14 14 10 11 11 11 9 7 7 7 7 7 5 Treads 18 | . 28 17 27 27 33 28 26 . . . . . . Leg 1 | . . . . . . . . . . 9 15 15 11 Wheel 2 | . . 10 5 5 . 4 . . . . . . . Hover 5 | . . . . . . . . 30 30 10 . . . Device 9 | . . . 10 11 11 11 10 7 9 16 10 7 6 Storage 10 | . 14 24 11 11 11 11 9 7 7 7 7 7 5 Processor 2 | . . . . . . . 7 . . . . . 5 Hackware 5 | . . . . . . . 2 15 15 15 15 15 11 Protection 10 | . 8 2 10 11 11 11 14 13 12 3 9 15 10 Energy Cannon 11 | . 15 16 18 21 12 20 7 2 . 5 6 7 1 Ballistic Gun 3 | . 6 10 2 . . . . 6 . 6 7 7 1 Ballistic Cannon 2 | . . . . . . 1 8 . . . . . . Naked Turns . | . . . . . . . . . . . . . . Heaviest Build 112 | 13 17 95 100 101 101 103 112 47 41 41 46 46 49 Greatest Support 63 | 40 40 40 60 63 63 63 63 48 48 60 60 60 60 Greatest Overweight (x) 8 | . . 5 8 8 1 6 6 . . 1 . . 2 Average Overweight (x) 1 | . . 3 3 4 1 3 1 . . . . . . Largest Inventory Capacity 25 | 8 8 25 25 25 25 25 25 25 10 10 10 10 10 Average Capacity 19 | 8 8 20 25 25 25 25 25 10 10 10 10 10 9 Most Carried 25 | 6 8 15 25 25 25 25 25 22 10 10 10 10 10 Average Carried 18 | 6 7 12 24 24 24 24 24 10 9 9 9 10 9 Final Capacity 25 | 8 8 25 25 25 25 25 25 10 10 10 10 10 5 Final Carried 25 | 6 8 15 23 25 25 25 23 10 10 10 10 10 2 Class Distribution -------------------- 49% | Mutant 34% | Scavenger-Mutant 15% | Hacker-Mutant Dominant Class ---------------- Mutant | -10/Materials Mutant | -10/Mines Mutant | -9/Materials Mutant | -9/Mines Mutant | -9/Exiles Mutant | -8/Mines Mutant | -8/Materials Scavenger-Mutant | -7/Factory Scavenger-Mutant | -7/Waste Hacker-Mutant | -7/Factory Hacker-Mutant | -7/Lower Caves Hacker-Mutant | -7/Lower Caves Hacker-Mutant | -6/Factory Resources | -11 -10 -10 -9 -9 -9 -8 -8 -7 -7 -7 -7 -7 -6 ----------- Run | Jun Mat Min Mat Min Exi Min Mat Fac Was Fac Low Low Fac Matter Collected 4171 | 216 57 95 592 150 20 70 776 929 . 676 411 . 179 Remotely . | . . . . . . . . . . . . . . Salvage Created 7031 | . 185 434 1786 213 . 394 1057 1496 . 833 467 . 166 Parts 429 | . 12 29 115 19 . 16 63 115 . 46 11 . 3 Haulers Intercepted 12 | . . . 6 . . . 4 1 . 1 . . . Recyclers Shooed 4 | . . . . . . . . . . 4 . . . Parts Field Recycled . | . . . . . . . . . . . . . . Retrieved Matter . | . . . . . . . . . . . . . . Parts Self-Destructed 18 | . . . . . . . . . . . 18 . . Prevented 4 | . . . . . . . . . . . 4 . . Kills | -11 -10 -10 -9 -9 -9 -8 -8 -7 -7 -7 -7 -7 -6 ------- Run | Jun Mat Min Mat Min Exi Min Mat Fac Was Fac Low Low Fac Combat Hostiles Destroyed 158 | . 4 13 33 7 . 6 24 37 . 18 13 . 3 Melee 2 | . . . . . . . . 2 . . . . . Guns 13 | . . . 4 . . . . 4 . 1 3 . 1 Cannons 60 | . 4 7 16 . . 3 14 2 . 8 5 . 1 AOE 78 | . . 6 12 7 . 2 8 29 . 8 5 . 1 Classes Destroyed 19 | . 2 7 5 1 . 1 . 3 . . . . . Worker 11 | . . 2 3 . . 1 . 4 . 1 . . . Builder 15 | . . . . 1 . . . 10 . 4 . . . Tunneler 4 | . . 1 1 1 . . 1 . . . . . . Hauler 12 | . . . 6 . . . 4 1 . 1 . . . Recycler 10 | . . 2 2 1 . 2 . 3 . . . . . Operator 5 | . . . 3 . . . 1 1 . . . . . Watcher 15 | . 1 . 5 . . . 5 3 . 1 . . . Swarmer 35 | . . 6 6 7 . . 8 4 . 4 . . . Cutter 8 | . . . . . . . . 8 . . . . . Grunt 68 | . 4 . 16 . . 5 7 18 . 7 10 . 1 Brawler 4 | . . . 1 . . . . 1 . . 2 . . Duelist 4 | . . . 1 . . . 1 2 . . . . . Sentry 21 | . . . 9 . . . 8 . . 3 1 . . Demolisher 1 | . . 1 . . . . . . . . . . . Hunter 4 | . . . . . . 1 . . . 1 . . 2 Programmer 6 | . . . . . . . . 3 . 3 . . . Heavy 1 | . . . . . . . . 1 . . . . . Zionite 1 | . . 1 . . . . . . . . . . . Assembled 6 | . . 6 . . . . . . . . . . . Thug 1 | . . . . 1 . . . . . . . . . Best Kill Streak 13 | . 3 4 7 4 . 3 4 13 . 6 8 . 1 Combat Bots Only 9 | . 2 4 6 4 . 3 4 9 . 5 8 . 1 Max Kills in Single Turn 7 | . 1 3 3 3 . 1 4 7 . 3 3 . 1 Gunslinging . | . . . . . . . . . . . . . . Exploded 6 | . . 3 3 3 . 1 4 6 . 3 3 . 1 Melee 1 | . . . . . . . . 1 . . . . . Uniques/NPCs Destroyed . | . . . . . . . . . . . . . . Combat | -11 -10 -10 -9 -9 -9 -8 -8 -7 -7 -7 -7 -7 -6 -------- Run | Jun Mat Min Mat Min Exi Min Mat Fac Was Fac Low Low Fac Damage Taken 8833 | . 186 355 1229 212 . 261 857 1172 37 1103 966 . 2455 Core 1664 | . 31 100 161 15 . 16 52 123 . 154 145 . 867 Absorbed by Shields . | . . . . . . . . . . . . . . Redirected to Shielding 140 | . . . . . . . . 140 . . . . . Regen/Repaired (Parts) 616 | . . . 223 . . . 215 65 . 113 . . . Core Remaining (%) 65 | 100 . 47 . . . 52 90 . . . . 39 . Volleys Fired 505 | . 14 26 106 10 . 15 69 119 5 80 38 . 23 Largest 2 | . 2 2 2 2 . 2 2 2 2 2 2 . 2 Hottest 128 | . 120 120 120 128 . 128 112 110 110 110 93 . 110 Shots Fired 845 | . 28 48 204 16 . 28 128 164 10 123 63 . 33 Gun 218 | . 2 5 34 . . . . 68 10 50 25 . 24 Cannon 562 | . 26 40 163 12 . 26 122 72 . 66 26 . 9 Launcher 65 | . . 3 7 4 . 2 6 24 . 7 12 . . Special . | . . . . . . . . . . . . . . Kinetic 195 | . 1 5 34 . . . 59 36 . 33 25 . 2 Thermal 503 | . 27 40 163 12 . 26 63 72 . 66 26 . 8 Explosive 65 | . . 3 7 4 . 2 6 24 . 7 12 . . Electromagnetic 82 | . . . . . . . . 32 10 17 . . 23 Robot Hit Streak 18 | . 9 5 14 8 . 18 16 12 3 11 9 . 7 Robot Miss Streak 5 | . 2 5 3 1 . 3 3 4 1 4 2 . 2 Penetration Max 1 | . . . . . . . . 1 . 1 1 . . Secondary Targets . | . . . . . . . . . . . . . . Shots Hit Robots 502 | . 17 22 128 13 4 20 86 75 7 67 41 . 22 Core Hits 356 | . 6 24 70 10 . 12 45 101 . 42 30 . 16 Critical Kills 4 | . . . 2 . . . 2 . . . . . . Critical Parts Destroyed . | . . . . . . . . . . . . . . Critical Strikes 8 | . . . 2 . . . 5 1 . . . . . Meltdown 4 | . . . 2 . . . 2 . . . . . . Blast 3 | . . . . . . . 3 . . . . . . Sever 1 | . . . . . . . . 1 . . . . . Melee Attacks 41 | . . . 1 5 4 . 6 23 . . . . 2 Impact . | . . . . . . . . . . . . . . Slashing 34 | . . . . 5 . . 6 23 . . . . . Piercing . | . . . . . . . . . . . . . . Sneak Attacks 16 | . . . 1 5 4 . . 4 . . . . 2 Combat Hostiles 2 | . . . . . . . . . . . . . 2 Follow-up Attacks . | . . . . . . . . . . . . . . Damage Inflicted 18983 | . 333 734 3305 1059 . 638 2592 5114 4 2466 2091 . 647 Guns 2483 | . 15 35 258 . . . . 854 4 661 421 . 235 Cannons 7089 | . 316 446 1969 157 . 349 1934 484 . 806 461 . 167 Explosions 8377 | . . 252 1059 531 . 265 620 3333 . 999 1209 . 109 Melee 799 | . . . . 356 . . . 443 . . . . . Ramming 235 | . 2 1 19 15 . 24 38 . . . . . 136 Kinetic 2853 | . 15 35 258 . . . 958 589 . 528 421 . 49 Thermal 7100 | . 316 446 1969 234 . 349 976 1158 . 915 461 . 276 Explosive 7359 | . . 252 1036 454 . 265 620 2659 . 864 1209 . . Electromagnetic 637 | . . . 23 . . . . 265 4 159 . . 186 Impact . | . . . . . . . . . . . . . . Slashing 799 | . . . . 356 . . . 443 . . . . . Piercing . | . . . . . . . . . . . . . . Highest Corruption 25 | . . . . . . . 5 2 19 25 20 20 21 Average Corruption 16 | . . . . . . . 5 1 12 19 20 20 2 Corruption Purged 9 | . . . . . . . . 2 . 7 . . . Corruption Blocked . | . . . . . . . . . . . . . . Effects 148 | . . . . . . . . 2 5 87 44 . 10 Message Errors 30 | . . . . . . . . 1 1 12 13 . 3 Matter Fused 38 | . . . . . . . . . . 27 10 . 1 Heat Flow Errors 16 | . . . . . . . . 1 . 9 4 . 2 Energy Discharges 16 | . . . . . . . . . 1 7 7 . 1 Parts Rejected 1 | . . . . . . . . . . 1 . . . Parts Fused 1 | . . . . . . . . . . 1 . . . Data Loss (minor) 14 | . . . . . . . . . 1 12 . . 1 Data Loss (major) 12 | . . . . . . . . . 2 5 4 . 1 Misfires 8 | . . . . . . . . . . 5 2 . 1 Alerts 3 | . . . . . . . . . . 2 1 . . Misdirections 1 | . . . . . . . . . . 1 . . . Weapon Failures 8 | . . . . . . . . . . 5 3 . . Overload Shots . | . . . . . . . . . . . . . . Overflow Damage 538 | . . . 40 113 . 6 37 241 . 67 34 . . Projectiles 142 | . . . 12 13 . . 25 62 . 11 19 . . Explosions 307 | . . . 28 56 . 6 12 134 . 56 15 . . Melee 89 | . . . . 44 . . . 45 . . . . . Knockbacks 10 | . . . . . . 1 8 . . . . . 1 Impact 3 | . . . . . . 1 1 . . . . . 1 Kinetic 7 | . . . . . . . 7 . . . . . . Secondary . | . . . . . . . . . . . . . . Self-Inflicted Damage 805 | . . . 115 96 . 38 44 273 . 43 157 . 39 Shots 27 | . . . 3 3 . 2 2 8 . 1 8 . . Rammed 58 | . 1 1 4 2 . 2 3 . . . . . 45 Targets Rammed 63 | . 1 1 4 2 . 3 3 . . . . . 49 Kicked 4 | . . . . . . . . . . . . . 4 Crushed 1 | . . . . . . 1 . . . . . . . Highest Temperature 342 | . 266 312 342 72 . 105 99 248 68 276 229 . 239 Average Temperature 81 | . 121 120 80 27 . 42 23 56 32 77 98 . 89 Received Heat Transfer 2169 | . 102 . 378 . . 90 333 171 . 231 414 . 450 Effects 4 | . . 1 1 . . . . . . 2 . . . Interference 2 | . . . . . . . . . . 2 . . . Short Circuit 1 | . . 1 . . . . . . . . . . . Damage (minor) 1 | . . . 1 . . . . . . . . . . Siege Activations . | . . . . . . . . . . . . . . Robots Corrupted 2 | . . . . . . . . . . 2 . . . Combat Hostiles 1 | . . . . . . . . . . 1 . . . Parts Fried 8 | . . . . . . . . 3 . 3 . . 2 Impact Corruptions . | . . . . . . . . . . . . . . Robots Melted 5 | . . . 2 . . 1 2 . . . . . . Combat Hostiles 4 | . . . 1 . . 1 2 . . . . . . Parts Melted 13 | . . 2 4 . . 1 4 . . 1 . . 1 Heat Transferred 11504 | . 666 925 4033 396 . 666 1702 1079 . 1086 629 . 322 Parts Sabotaged . | . . . . . . . . . . . . . . Parts Stolen . | . . . . . . . . . . . . . . Parts Stripped . | . . . . . . . . . . . . . . Power Chain Reactions 2 | . . . . . . . . . . 1 . . 1 Missiles Intercepted . | . . . . . . . . . . . . . . Alert | -11 -10 -10 -9 -9 -9 -8 -8 -7 -7 -7 -7 -7 -6 ------- Run | Jun Mat Min Mat Min Exi Min Mat Fac Was Fac Low Low Fac Peak Influence 1719 | . 130 246 429 335 . 104 376 1719 601 629 . . 247 Initial 601 | . . 50 . 166 . . . 165 601 371 . . 228 Average 267 | . 45 69 157 125 . 51 215 614 566 487 . . 186 Maximum Alert Level 5 | . . 1 2 1 . . 1 5 2 2 . . 1 Low Security (%) 55 | 100 100 85 76 75 . 100 44 39 . . . . 43 Level 1 24 | . . 14 9 24 . . 55 5 . 22 . . 56 Level 2 13 | . . . 14 . . . . 12 100 77 . . . Level 3 3 | . . . . . . . . 18 . . . . . Level 4 3 | . . . . . . . . 20 . . . . . Level 5 . | . . . . . . . . 2 . . . . . High Security . | . . . . . . . . . . . . . . Max Security . | . . . . . . . . . . . . . . Squads Dispatched 53 | . 2 . 5 . . . 4 29 . 8 . . 5 Investigation 22 | . 1 . 3 . . . 1 11 . 4 . . 2 Extermination 5 | . . . . . . . . 2 . 2 . . 1 Reinforcement 23 | . 1 . 2 . . . 2 14 . 2 . . 2 Assault 2 | . . . . . . . . 2 . . . . . Garrison 1 | . . . . . . . 1 . . . . . . Intercept . | . . . . . . . . . . . . . . Searches Triggered . | . . . . . . . . . . . . . . Construction Impeded 3 | . . . . . . . . 2 . 1 . . . Haulers Reinforced . | . . . . . . . . . . . . . . Active Scanning Responses . | . . . . . . . . . . . . . . Cargo Convoy Interrupts 1 | . . . . . . . . 1 . . . . . Stealth | -11 -10 -10 -9 -9 -9 -8 -8 -7 -7 -7 -7 -7 -6 --------- Run | Jun Mat Min Mat Min Exi Min Mat Fac Was Fac Low Low Fac Distress Signals 13 | . . . 5 . . . 1 2 . 5 . . . Communications Jammed . | . . . . . . . . . . . . . . Distress Signals . | . . . . . . . . . . . . . . Times Spotted 281 | . 5 28 48 10 . 7 39 68 6 28 24 . 18 Peak Tracking Total 16 | . 2 16 5 4 . 3 4 7 6 5 9 . 6 Tactical Retreats 22 | . . . 1 . . . 1 6 1 4 7 . 2 Traps | -11 -10 -10 -9 -9 -9 -8 -8 -7 -7 -7 -7 -7 -6 ------- Run | Jun Mat Min Mat Min Exi Min Mat Fac Was Fac Low Low Fac Traps Triggered 11 | . 1 . 3 . . . . 2 . 2 . . 3 Indirectly . | . . . . . . . . . . . . . . Trap Hack Attempts 126 | . . . 36 . . . 43 47 . . . . . Triggered . | . . . . . . . . . . . . . . Disarmed 1 | . . . 1 . . . . . . . . . . Reprogrammed 16 | . . . 3 . . . 4 9 . . . . . Reused 5 | . . . . . . . . 5 . . . . . Traps Extracted . | . . . . . . . . . . . . . . Installed . | . . . . . . . . . . . . . . Triggered 10 | . . . . . . . . 6 . 2 1 . 1 Machines | -11 -10 -10 -9 -9 -9 -8 -8 -7 -7 -7 -7 -7 -6 ---------- Run | Jun Mat Min Mat Min Exi Min Mat Fac Was Fac Low Low Fac Machines Disabled 44 | . . 2 3 1 . 2 4 23 . 7 1 . 1 Max in Single Turn 7 | . . 1 1 1 . 1 1 7 . 3 1 . 1 Garrison Access 7 | . . . . . . . 1 4 . 1 . . 1 Machines Repaired . | . . . . . . . . . . . . . . Machines Sabotaged . | . . . . . . . . . . . . . . Overloaded Fab Kills . | . . . . . . . . . . . . . . Hacking | -11 -10 -10 -9 -9 -9 -8 -8 -7 -7 -7 -7 -7 -6 --------- Run | Jun Mat Min Mat Min Exi Min Mat Fac Was Fac Low Low Fac Machines Accessed 79 | . 2 . 16 . 2 . 14 24 . 16 . . 5 Terminals 39 | . 1 . 10 . . . 8 11 . 7 . . 2 Fabricators 10 | . . . . . . . . 6 . 3 . . 1 Repair Stations 8 | . 1 . 2 . . . 2 1 . 2 . . . Recycling Units 9 | . . . 2 . . . 2 2 . 2 . . 1 Scanalyzers 3 | . . . 2 . . . 1 . . . . . . Garrison Access 8 | . . . . . . . 1 4 . 2 . . 1 Total Hacks 244 | . 9 . 58 . 2 . 53 67 . 39 . . 16 Successful 127 | . 3 . 27 . 2 . 28 38 . 21 . . 8 Failed 117 | . 6 . 31 . . . 25 29 . 18 . . 8 Catastrophic 9 | . 1 . 3 . . . 1 3 . . . . 1 Database Lockouts . | . . . . . . . . . . . . . . Manual 114 | . 8 . 25 . 1 . 33 28 . 11 . . 8 Terminals 123 | . 8 . 32 . . . 32 30 . 15 . . 6 Fabricators 37 | . . . . . . . . 23 . 10 . . 4 Repair Stations 32 | . 1 . 11 . . . 9 3 . 8 . . . Recycling Units 23 | . . . 8 . . . 5 4 . 3 . . 3 Scanalyzers 11 | . . . 7 . . . 4 . . . . . . Garrison Access 16 | . . . . . . . 3 7 . 3 . . 3 Terminal Hacks 24 | . 2 . 7 . 2 . 4 5 . 4 . . . Record 1 | . . . . . 1 . . . . . . . . Part Schematic 1 | . . . . . . . . 1 . . . . . Robot Schematic 2 | . . . . . . . 1 1 . . . . . Robot Analysis 4 | . 2 . 2 . . . . . . . . . . Prototype ID Bank 1 | . . . 1 . . . . . . . . . . Branch Access Points 3 | . . . . . . . . 2 . 1 . . . Machine Index 2 | . . . . . . . . 1 . 1 . . . Unreport Threat 3 | . . . 1 . . . 1 . . 1 . . . Locate Traps 3 | . . . 1 . . . 1 . . 1 . . . Hauler Manifests 1 | . . . 1 . . . . . . . . . . Zone Layout 2 | . . . 1 . . . 1 . . . . . . Derelict Proto ID Bank 1 | . . . . . 1 . . . . . . . . Fabricator Hacks 21 | . . . . . . . . 14 . 4 . . 3 Network Status 3 | . . . . . . . . 1 . 1 . . 1 Load Schematic 10 | . . . . . . . . 7 . 2 . . 1 Build 8 | . . . . . . . . 6 . 1 . . 1 Repair Station Hacks 24 | . 1 . 8 . . . 7 2 . 6 . . . Scan Component 13 | . . . 4 . . . 4 1 . 4 . . . Repair 10 | . . . 4 . . . 3 1 . 2 . . . Refit 1 | . 1 . . . . . . . . . . . . Recycling Unit Hacks 7 | . . . 1 . . . 2 2 . 1 . . 1 Retrieve Components 7 | . . . 1 . . . 2 2 . 1 . . 1 Scanalyzer 9 | . . . 5 . . . 4 . . . . . . Insert Component 5 | . . . 3 . . . 2 . . . . . . Analyze 4 | . . . 2 . . . 2 . . . . . . Garrison Access Hacks 7 | . . . . . . . 1 4 . 1 . . 1 Seal Access 7 | . . . . . . . 1 4 . 1 . . 1 Unauthorized Hacks 35 | . . . 6 . . . 10 11 . 5 . . 3 Terminals 23 | . . . 3 . . . 8 5 . 5 . . 2 Assimilate 7 | . . . . . . . 3 1 . 2 . . 1 Botnet 10 | . . . 1 . . . 4 3 . 2 . . . Disrupt 3 | . . . 1 . . . . . . 1 . . 1 Operators 3 | . . . 1 . . . 1 1 . . . . . Fabricators 4 | . . . . . . . . 4 . . . . . Prioritize 1 | . . . . . . . . 1 . . . . . Liberate 2 | . . . . . . . . 2 . . . . . Haulers 1 | . . . . . . . . 1 . . . . . Repair Stations . | . . . . . . . . . . . . . . Recycling Units 7 | . . . 2 . . . 2 2 . . . . 1 Reject 6 | . . . 1 . . . 2 2 . . . . 1 Mask 1 | . . . 1 . . . . . . . . . . Scanalyzers 1 | . . . 1 . . . . . . . . . . Extract 1 | . . . 1 . . . . . . . . . . Garrison Access . | . . . . . . . . . . . . . . Data Cores Recovered 1 | . . . 1 . . . . . . . . . . Used . | . . . . . . . . . . . . . . Hacking Detections 61 | . 1 . 14 . . . 10 19 . 12 . . 5 Full Trace Events 19 | . 1 . 2 . . . 1 10 . 3 . . 2 Feedback Events . | . . . . . . . . . . . . . . Feedback Blocked . | . . . . . . . . . . . . . . Robot Schematics Acquired 2 | . . . . . . . 1 1 . . . . . Robots Built 13 | . . . . . . . . 9 . 2 . . 2 Authchips 1 | . . . . . . . . 1 . . . . . Time 435 | . . . . . . . . 234 . 134 . . 67 Total Robot Build Rating 52 | . . . . . . . . 36 . 8 . . 8 Part Schematics Acquired 6 | . . . 3 . . . 2 1 . . . . . Parts Built 2 | . . . . . . . . 2 . . . . . Authchips . | . . . . . . . . . . . . . . Time 84 | . . . . . . . . 84 . . . . . Total Part Build Rating 8 | . . . . . . . . 8 . . . . . Parts Repaired 10 | . . . 4 . . . 3 1 . 2 . . . Time 406 | . . . 176 . . . 117 19 . 94 . . . Parts Recycled . | . . . . . . . . . . . . . . Recycled Matter . | . . . . . . . . . . . . . . Retrieved Matter . | . . . . . . . . . . . . . . Retrieved Components 46 | . . . 9 . . . 18 10 . 9 . . . Parts Scanalyzed 4 | . . . 2 . . . 2 . . . . . . Part Schematics Acquired 4 | . . . 2 . . . 2 . . . . . . Parts Damaged . | . . . . . . . . . . . . . . Bothacking | -11 -10 -10 -9 -9 -9 -8 -8 -7 -7 -7 -7 -7 -6 ------------ Run | Jun Mat Min Mat Min Exi Min Mat Fac Was Fac Low Low Fac Used RIF Installer . | . . . . . . . . . . . . . . Robots Hacked 5 | . . . 1 . 4 . . . . . . . . Non-combat 4 | . . . 1 . 3 . . . . . . . . Combat 1 | . . . . . 1 . . . . . . . . Robot Hacks Applied 5 | . . . 1 . 4 . . . . . . . . parse_system 4 | . . . . . 4 . . . . . . . . no_distress 1 | . . . 1 . . . . . . . . . . Relay Couplers Released . | . . . . . . . . . . . . . . Fabnet Peak Effective % . | . . . . . . . . . . . . . . Robots Rewired 3 | . . . . . . . . . . . 2 . 1 Allies Hacked 4 | . . . . . . . . 4 . . . . . Hacks Repelled . | . . . . . . . . . . . . . . Allies | -11 -10 -10 -9 -9 -9 -8 -8 -7 -7 -7 -7 -7 -6 -------- Run | Jun Mat Min Mat Min Exi Min Mat Fac Was Fac Low Low Fac Total Allies 29 | . . 2 . 3 . . 1 14 1 2 2 . 4 Largest Group 5 | . . 2 . 3 3 3 1 5 1 2 2 1 3 Highest-Rated Group 164 | . . 42 . 40 40 40 10 164 37 74 36 13 100 Highest-Rated Ally 37 | . . 31 . 16 16 16 10 37 37 37 20 13 37 Total Orders 23 | . . . . . . 1 5 16 . . . . 1 STAY 17 | . . . . . . 1 3 12 . . . . 1 FOLLOW 6 | . . . . . . . 2 4 . . . . . Ally Attacks 150 | . . 4 . 6 . 16 . 62 9 5 15 . 33 Total Damage 3532 | . . 41 . 42 . 192 . 1926 151 126 157 . 897 Kills 35 | . . . . 3 . . . 20 . 1 3 . 8 Allies Corrupted 1 | . . . . . . . . 1 . . . . . Allies Melted . | . . . . . . . . . . . . . . Intel | -11 -10 -10 -9 -9 -9 -8 -8 -7 -7 -7 -7 -7 -6 ------- Run | Jun Mat Min Mat Min Exi Min Mat Fac Was Fac Low Low Fac Robot Analysis Total 4 | . 2 . 2 . . . . . . . . . . Derelict Logs Recovered 5 | . . 2 . 1 . . . . . . 2 . . Drone Launches . | . . . . . . . . . . . . . . Drone Recoveries . | . . . . . . . . . . . . . . Exploration | -11 -10 -10 -9 -9 -9 -8 -8 -7 -7 -7 -7 -7 -6 ------------- Run | Jun Mat Min Mat Min Exi Min Mat Fac Was Fac Low Low Fac Turns Passed 21988 | 8 326 1453 4434 1596 762 1014 5228 3367 160 1875 883 7 875 Spaces Moved 11587 | 3 145 780 1639 680 313 412 1738 3341 168 1334 543 6 485 Core 32 | . . . . . . . . . . . . . 32 Treads 3716 | 3 145 184 815 333 313 223 1700 . . . . . . Legs 1677 | . . . . . . . . . . 675 543 6 453 Wheels 1994 | . . 596 824 347 . 189 38 . . . . . . Hover 4168 | . . . . . . . . 3341 168 659 . . . Flight . | . . . . . . . . . . . . . . Fastest Speed 50 | 160 160 160 175 210 240 190 190 71 71 62 140 140 50 Average Speed 153 | 160 160 172 215 224 240 217 242 71 71 103 140 140 135 Slowest Speed 480 | 160 160 320 480 240 240 320 246 71 71 146 140 140 150 Overloaded Moves . | . . . . . . . . . . . . . . Propulsion Burnouts . | . . . . . . . . . . . . . . Robots Hopped . | . . . . . . . . . . . . . . Cave-ins Triggered . | . . . . . . . . . . . . . . Exploration Rate (%) 56 | 2 26 98 97 97 71 75 79 62 70 36 64 4 16 Regions Visited 13 Branch Regions 6 Pre-discovered Areas 1 | . . . . . 1 . . . . . . . . Known Exits Taken 2 | . . . . . . . . . . 1 1 . . Unknown Exits Taken 9 | 1 1 1 1 1 1 1 1 . . . . 1 . Scrap Searched 6 | . . 1 . 2 . 1 . . . . 2 . . Spaces Dug 115 | . . 3 15 11 . . 30 35 . 9 11 . 1 Terrain Destroyed 574 | . . 21 61 55 . 16 59 181 . 45 130 . 6 Melee 16 | . . . . . . . 6 10 . . . . . Projectile 51 | . . . . . . . 9 23 . 13 4 . 2 AOE 507 | . . 21 61 55 . 16 44 148 . 32 126 . 4 Terrain Rammed . | . . . . . . . . . . . . . . Walls Destroyed . | . . . . . . . . . . . . . . Machines Disabled . | . . . . . . . . . . . . . . Actions | -11 -10 -10 -9 -9 -9 -8 -8 -7 -7 -7 -7 -7 -6 --------- Run | Jun Mat Min Mat Min Exi Min Mat Fac Was Fac Low Low Fac Total 14849 | 5 211 841 2333 722 325 500 2617 4137 197 1700 600 5 656 Wait 2100 | . 36 19 446 9 . 52 683 522 22 230 8 . 73 Move 11575 | 2 144 779 1638 679 312 411 1737 3341 167 1333 542 5 485 Hop . | . . . . . . . . . . . . . . Pick Up 92 | . 7 9 34 3 3 6 10 8 1 9 1 . 1 Fast Attach 43 | . . 1 8 1 . 2 9 5 1 11 2 . 3 Attach 32 | . . 1 8 2 . . 5 3 1 6 1 . 5 Detach 7 | . . . 1 1 . . 3 . . 2 . . . Swap 156 | 3 4 3 27 9 3 4 29 45 . 14 3 . 12 Drop 104 | . 5 2 24 1 3 7 20 23 . 15 1 . 3 Fire 505 | . 14 26 106 10 . 15 69 119 5 80 38 . 23 Melee 41 | . . . 1 5 4 . 6 23 . . . . 2 Ram 45 | . . . . . . . . . . . . . 45 Kick 4 | . . . . . . . . . . . . . 4 Crush 14 | . 1 1 4 2 . 3 3 . . . . . . Escape Stasis . | . . . . . . . . . . . . . . Rewire 5 | . . . . . . . . 1 . . 4 . . Trap 126 | . . . 36 . . . 43 47 . . . . . Miscellaneous . | . . . . . . . . . . . . . . Route ------- -11/Junkyard -10/Materials -10/Mines (discovered 3 exits: *Mat x2 / [*Sub]) -9/Materials (discovered 4 exits: *Mat x3 / [*Min]) -9/Mines (discovered 2 exits: *Mat / *Exi) -9/Exiles -8/Mines -8/Materials (discovered 2 exits: *Fac x2) -7/Factory (discovered 5 exits: *Fac / *Sto x2 / *Low x2) -7/Waste -7/Factory (discovered 3 exits: Sto / *Low x2) -7/Lower Caves -7/Lower Caves -6/Factory History --------- Turn | Location | Event 4 | -11/Junkyard | Discovered new exit (range 1) 9 | -11/Junkyard | Entered Materials 305 | -10/Materials | Discovered new exit (range 11) 314 | -10/Materials | Build established: Mutant 335 | -10/Materials | Entered Mines 373 | -10/Mines | Met a Derelict bent on vengeance 546 | -10/Mines | Discovered new exit (range 9) 589 | -10/Mines | Discovered new exit (range 9) 613 | -10/Mines | Assembled infested the area 700 | -10/Mines | Core integrity fell below 50% 921 | -10/Mines | Learned Materials terminal intel 1134 | -10/Mines | Discovered new exit (range 7) 1788 | -10/Mines | Entered Materials 1788 | -9/Materials | Evolved 2 slots: Propulsion x1, Utility x1 1789 | -9/Materials | Loaded intel: 12 terminal locations 2259 | -9/Materials | Discovered new exit (range 14) 3018 | -9/Materials | Discovered new exit (range 16) 3465 | -9/Materials | Build established: Scavenger-Mutant 3883 | -9/Materials | Repaired Cmb. Airjet 3934 | -9/Materials | Repaired Cmb. Airjet 4641 | -9/Materials | Repaired Cmb. Airjet 4668 | -9/Materials | Repaired Lgt. Treads 4776 | -9/Materials | Discovered new exit (range 15) 5276 | -9/Materials | Discovered new exit (range 16) 5470 | -9/Materials | Build established: Mutant 6222 | -9/Materials | Entered Mines 6264 | -9/Mines | Deemed a non-threat by the Exiles lab entrance 6266 | -9/Mines | Discovered new exit (range 5) 6363 | -9/Mines | Found a damaged Exp. Sensor Array with a note attached 6367 | -9/Mines | Found Prototype Device 6559 | -9/Mines | A weapon hastily lodged in a ceiling crevice suddenly fell to the ground 6872 | -9/Mines | Assisted by bots powering up and referring to "LRC-V3" 6976 | -9/Mines | Discovered new exit (range 6) 7197 | -9/Mines | Met a Derelict testing a Signal Generator 7818 | -9/Mines | Entered Exiles 7818 | -9/Exiles | Accompanied by 3 allies 7889 | -9/Exiles | Met 8R-AWN 7953 | -9/Exiles | Met EX-HEX 8074 | -9/Exiles | Met EX-DEC 8142 | -9/Exiles | Learned location of Zion (-6) 8185 | -9/Exiles | Met EX-BIN 8222 | -9/Exiles | Aligned with FarCom system 8224 | -9/Exiles | Given EX-Vault access code 8280 | -9/Exiles | Opened EX-Vault 8295 | -9/Exiles | Found Cloak of Protection 8346 | -9/Exiles | Warned to stay clear of 0b10 Research branches 8555 | -9/Exiles | Discovered new exit (range 12) 8580 | -9/Exiles | Left Exiles lab with Cloak of Protection 8580 | -9/Exiles | Entered Mines 8580 | -8/Mines | Accompanied by 3 allies 9568 | -8/Mines | Discovered new exit (range 5) 9594 | -8/Mines | Entered Materials 9594 | -8/Materials | Evolved 2 slots: Utility x2 9882 | -8/Materials | Build established: Scavenger-Mutant 10706 | -8/Materials | Repaired Broken Assault Cannon 10739 | -8/Materials | Repaired Hrd. Light Armor Plating 11251 | -8/Materials | Build established: Mutant 11473 | -8/Materials | Garrison activated, responded to threat 11652 | -8/Materials | Repaired Particle Cannon 11690 | -8/Materials | Identified Exp. Sensor Array 11851 | -8/Materials | Discovered new exit (range 16) 12347 | -8/Materials | Discovered new exit (range 13) 14382 | -8/Materials | Build established: Hacker-Mutant 14822 | -8/Materials | Entered Factory 14822 | -7/Factory | Accompanied by 1 ally 14822 | -7/Factory | Evolved 2 slots: Propulsion x1, Utility x1 14823 | -7/Factory | Identified exit to Storage 14885 | -7/Factory | Fabricated P-60 Hacker (x2) 14923 | -7/Factory | Identified exit to Lower Caves 15130 | -7/Factory | Build established: Scavenger-Mutant 15714 | -7/Factory | Cargo convoy interrupted 15989 | -7/Factory | Discovered new exit (range 12) 16334 | -7/Factory | Fabricated Arc Projector (x1) 16375 | -7/Factory | Destroyed 8 combat bots 16476 | -7/Factory | Fabricated L-41 Fighter (x3) 16546 | -7/Factory | Fabricated Arc Projector? 16814 | -7/Factory | Destroyed 9 combat bots 16822 | -7/Factory | First assault squad dispatched 16868 | -7/Factory | Repaired Imp. Propulsion Shielding 17573 | -7/Factory | Fabricated P-60 Hacker? 17770 | -7/Factory | Fabricated P-60 Hacker? 18189 | -7/Factory | Manually triggered Chute Trap 18189 | -7/Factory | Sucked down chute 18189 | -7/Factory | Entered Waste 18190 | -7/Waste | Met a frightened Derelict 18204 | -7/Waste | EMP discharged 18204 | -7/Waste | System corruption reached 10% 18232 | -7/Waste | Spotted C-40 Crusher 18233 | -7/Waste | Spotted C-40 Crusher 18235 | -7/Waste | Spotted C-40 Crusher 18237 | -7/Waste | Spotted C-40 Crusher 18277 | -7/Waste | Spotted C-40 Crusher 18285 | -7/Waste | Crushed by Compactor (1 part destroyed, 1 dropped) 18295 | -7/Waste | 2 allies followed down the chute 18302 | -7/Waste | Spotted C-40 Crusher 18304 | -7/Waste | EMP discharged 18331 | -7/Waste | Discovered new exit (range 15) 18349 | -7/Waste | Entered Factory 18588 | -7/Factory | Repaired Arc Projector? 18625 | -7/Factory | Fabricated P-60 Hacker? 18682 | -7/Factory | Repaired Cmb. Airjet? 19344 | -7/Factory | Build established: Hacker-Mutant 20224 | -7/Factory | Entered Lower Caves 20392 | -7/Lower Caves | Identified exit to Lower Caves 20488 | -7/Lower Caves | Attracted the attention of an 0b10 outpost 20496 | -7/Lower Caves | Core integrity fell below 50% 20567 | -7/Lower Caves | Destroyed 8 combat bots 20609 | -7/Lower Caves | Learned 8 Factory zone layouts 21107 | -7/Lower Caves | Entered another Lower Caves area 21107 | -7/Lower Caves | Accompanied by 1 ally 21109 | -7/Lower Caves | Discovered new exit (range 4) 21114 | -7/Lower Caves | Entered Factory 21114 | -6/Factory | Accompanied by 1 ally 21114 | -6/Factory | Evolved 2 slots: Power x1, Utility x1 21289 | -6/Factory | Fabricated P-60 Hacker (x2) 21843 | -6/Factory | Lost 6 parts (3u3w) 21929 | -6/Factory | Core integrity fell below 50% 21932 | -6/Factory | Lost 5 parts (1p2n2u) 21962 | -6/Factory | System corruption reached 10% 21971 | -6/Factory | Core integrity fell below 20% 21989 | -6/Factory | Destroyed by G-50 Soldier with Heavy Laser Last Messages --------------- 21981_ Slammed into G-50 Soldier. 21982_ U-05 Engineer lays Concrete. 21982_ Slammed into G-50 Soldier. 21983_ U-05 Engineer lays Concrete. 21983_ Slammed into G-50 Soldier. 21983_ U-05 Engineer lays Concrete. 21984_ Slammed into G-50 Soldier. 21985_ U-05 Engineer lays Concrete. 21985_ U-05 Engineer builds a Wall. 21985_ U-05 Engineer lays Concrete. 21985_ Slammed into G-50 Soldier. 21985_ Component Analysis Suite destroyed. 21985_ System corrupted by crushing effect (+4). 21986_ U-05 Engineer lays Concrete. 21986_ Slammed into G-50 Soldier. 21986_ Destabilizing: System corrupted (+1). 21987_ U-05 Engineer lays Concrete. 21987_ Slammed into G-50 Soldier. 21988_ U-05 Engineer lays Concrete. 21988_ Slammed into G-50 Soldier. Map ----- +----------------------------------------------------+ | ?????????????????????????????????????????????????" | | ???????????????????????? # ? | | ???????????????????????? #####? | | ???????????????????????? """"""""" #????? | | ???????????????????????? #????? | | ???????????????????????? """"""""" #????? | | ????????????????????????# #????? | | ????????????????????????# """"""""" #????? | | ????????????????????????# #????? | | ????????????????????????# """"""""" #????? | | ???????????????????????? #????? | | ????????????????????????# #????? | | ????????????????????????# #????? | | ????????????????????????######## ####+#######? | | ???????????????????????????????# # ? | | ???????????????????????????????# # """ """ ? | | ???????????????????????????????# # """ """ ? | | ???????????????????????????????# # """ """ ? | | ???????????????????????????????# # ? | | ??????????????????????######???# # ? | | ???????????????????#### ####### # ? | | ?????????????????### #%##%#### ###+########? | | ???????????####### % %u%%%% # ? | | ??????? %R%%%%%%% ^ # """? | | ??????????######## %u!%%g%%A% # """? | | ????###########??# u @ % # """? | | ????# ! ??# % """" #????? | | ????# ?# " R """" #????? | | ????# ?# """" """ ??? ?????? | | ????# # """" " """" ?????????? | | ????# # """" " """"??????????? | | ????# + """" " " """"??????????? | | ????# # ??????????? | | ????# # ??????????? | | ##### ?## ##################?????????? | | # ??# #??????????????????????????? | | # ???# #??????????????????????????? | | ! # ???# #??????????????????????????? | | ##########????# #??????????????????????????? | | #?????????????# #??????????????????????????? | | #?????????????# #??????????????????????????? | | #?????????????# #??????????????????????????? | | #?????????????# #??????????????????????????? | | #?#########???# #??????????????????????????? | | ###+###= #???# #??????????????????????????? | | % ##### #??????????????????????????? | | % "" #??????????????????????????? | | T" #??????????????????????????? | | #??????????????????????????? | | % #########??????????????????????????? | +----------------------------------------------------+ Best States ------------- Heat Dissipation 70 Energy Generation 14 Energy Capacity 280 Matter Stores 300 Matter Capacity 300 Sight Range 16 Terrain Scan Density 10 ECM Strength 2 Armor Coverage 600 Resistance: TH 15 Propulsion Shielding 66 Evasion (%) 58 Targeting Accuracy 8 Core Analysis 9 Recoil Reduction 3 Offensive Hacking 20 Authchip Count 1 Item Schematics ----------------- Cmb. Airjet | -9/Materials | Scanalyzed Hacking Suite | -9/Materials | Scanalyzed EM Shotgun | -9/Materials | Extracted Imp. Propulsion Shielding | -8/Materials | Scanalyzed Mak. ECM Suite | -8/Materials | Scanalyzed Arc Projector | -7/Factory | Hacked Robot Schematics ------------------ P-60 Hacker | -8/Materials | Hacked L-41 Fighter | -7/Factory | Hacked Fabricated ------------ P-60 Hacker | x2 | -7/Factory | Authchip Arc Projector | x1 | -7/Factory L-41 Fighter | x3 | -7/Factory | Preloaded Arc Projector | x1 | -7/Factory P-60 Hacker | x2 | -7/Factory P-60 Hacker | x2 | -7/Factory P-60 Hacker | x2 | -7/Factory P-60 Hacker | x2 | -6/Factory Alien Tech Used ----------------- None Achievements -------------- None Challenges ------------ None Game ------ Seed MetafieldCannonProjector Manual? 0 Play Time 01:48:42 Cumulative 1368.9 hours Start 2023.07.23 @ 21:01:31 End 2023.07.23 @ 23:34:31 Sessions 3 Manual Loads 0 Difficulty Rogue Special Mode None Game No. 972 Rogue 968 Adventurer 4 Explorer 0 Win Type - Total 158 Types 116/11/10/7/2/1/1/6/4 Lore% 95 Gallery% 98 Achievement% 98 Wizard Run 0 Options --------- ASCII 0 Keyboard 1 Movement Vi Keybinds 0 Fullscreen 0 Font 20/X11 Map View 76x50 Tactical HUD 1 Map Filters NONE Filters NONE Steam 1 RUN: d6af1d9c-6e6a-44af-969d-7ad16645e530